[Event "*** Titled Tuesday Blitz"]
[Site "Chess.com"]
[Date "2019.02.05"]
[Round "2"]
[White "Karina_Oparina"]
[Black "saraswathii"]
[Result "1-0"]
[WhiteElo "2209"]
[BlackElo "2255"]
[TimeControl "180+2"]
[EndTime "13:27:17 PST"]
[Termination "Karina_Oparina won by resignation"]

1. Nf3 {[%clk 0:03:01]} 1... Nf6 {[%clk 0:02:58.4]} 2. g3 {[%clk 0:03:01.8]}
2... g6 {[%clk 0:02:59.4]} 3. Bg2 {[%clk 0:03:01.6]} 3... Bg7 {[%clk 0:03:00.2]}
4. O-O {[%clk 0:03:02.3]} 4... d6 {[%clk 0:03:01.2]} 5. c4 {[%clk 0:02:59.5]}
5... O-O {[%clk 0:03:02]} 6. Nc3 {[%clk 0:02:56.6]} 6... e5 {[%clk 0:03:02.4]}
7. d4 {[%clk 0:02:57.3]} 7... Nbd7 {[%clk 0:03:00.4]} 8. e4 {[%clk 0:02:56.4]}
8... exd4 {[%clk 0:02:59.4]} 9. Nxd4 {[%clk 0:02:56.5]} 9... Re8 {[%clk
0:02:58.9]} 10. Be3 {[%clk 0:02:38.6]} 10... Nc5 {[%clk 0:02:58.6]} 11. f3
{[%clk 0:02:38.2]} 11... Ne6 {[%clk 0:02:49.9]} 12. Nxe6 {[%clk 0:02:37.6]}
12... Bxe6 {[%clk 0:02:50.5]} 13. b3 {[%clk 0:02:38.2]} 13... Qe7 {[%clk
0:02:45.3]} 14. Rc1 {[%clk 0:02:37.5]} 14... c6 {[%clk 0:02:43.8]} 15. Qd2
{[%clk 0:02:36.4]} 15... b6 {[%clk 0:02:38.9]} 16. Rfd1 {[%clk 0:02:36.8]} 16...
Rad8 {[%clk 0:02:39.1]} 17. Ne2 {[%clk 0:02:35.8]} 17... d5 {[%clk 0:02:38.1]}
18. cxd5 {[%clk 0:02:36.3]} 18... cxd5 {[%clk 0:02:38]} 19. e5 {[%clk
0:02:37.2]} 19... Nd7 {[%clk 0:02:34]} 20. f4 {[%clk 0:02:36.5]} 20... f6 {[%clk
0:02:32.3]} 21. exf6 {[%clk 0:02:32.7]} 21... Nxf6 {[%clk 0:02:32.8]} 22. Nd4
{[%clk 0:02:21.7]} 22... Bg4 {[%clk 0:02:24.2]} 23. Re1 {[%clk 0:02:21.4]} 23...
Ne4 {[%clk 0:02:21.6]} 24. Qd3 {[%clk 0:02:16.5]} 24... Rc8 {[%clk 0:02:12.3]}
25. h3 {[%clk 0:02:10.5]} 25... Bd7 {[%clk 0:02:02.3]} 26. Bf2 {[%clk
0:01:51.7]} 26... Qb4 {[%clk 0:01:34.5]} 27. Nf3 {[%clk 0:01:44.1]} 27... Qb5
{[%clk 0:01:24.2]} 28. Qxb5 {[%clk 0:01:40.2]} 28... Bxb5 {[%clk 0:01:26.1]} 29.
Rxc8 {[%clk 0:01:35.5]} 29... Rxc8 {[%clk 0:01:26.6]} 30. Bd4 {[%clk 0:01:20.1]}
30... Rc2 {[%clk 0:01:16.1]} 31. Bxg7 {[%clk 0:01:20.2]} 31... Kxg7 {[%clk
0:01:17]} 32. Nd4 {[%clk 0:01:21]} 32... Rxa2 {[%clk 0:01:01.2]} 33. Nxb5 {[%clk
0:01:20.5]} 33... Nxg3 {[%clk 0:01:01.9]} 34. Re7+ {[%clk 0:01:00.1]} 34... Kh6
{[%clk 0:00:58.7]} 35. Rxa7 {[%clk 0:00:59.4]} 35... Rxa7 {[%clk 0:00:54.9]} 36.
Nxa7 {[%clk 0:00:59.7]} 36... Ne2+ {[%clk 0:00:56.3]} 37. Kf2 {[%clk 0:00:59.9]}
37... Nxf4 {[%clk 0:00:57.5]} 38. Nc8 {[%clk 0:00:54.4]} 38... b5 {[%clk
0:00:46]} 39. Nd6 {[%clk 0:00:49.5]} 39... b4 {[%clk 0:00:44]} 40. Kg3 {[%clk
0:00:49.2]} 40... Ne2+ {[%clk 0:00:42.5]} 41. Kf2 {[%clk 0:00:39.8]} 41... Nf4
{[%clk 0:00:42.1]} 42. Nb5 {[%clk 0:00:38.2]} 42... Kg5 {[%clk 0:00:38]} 43. Kg3
{[%clk 0:00:37.6]} 43... Ne2+ {[%clk 0:00:33.1]} 44. Kf3 {[%clk 0:00:37]} 44...
Nf4 {[%clk 0:00:20.9]} 45. Nd4 {[%clk 0:00:35.3]} 45... Nd3 {[%clk 0:00:21.5]}
46. Kg3 {[%clk 0:00:31.5]} 46... Kf6 {[%clk 0:00:13.2]} 47. Bf1 {[%clk
0:00:31.4]} 47... Nc5 {[%clk 0:00:12.8]} 48. Kf4 {[%clk 0:00:28.3]} 48... g5+
{[%clk 0:00:12.7]} 49. Ke3 {[%clk 0:00:29.3]} 49... h5 {[%clk 0:00:12.3]} 50.
Be2 {[%clk 0:00:25]} 50... g4 {[%clk 0:00:10.3]} 51. hxg4 {[%clk 0:00:20.3]}
51... hxg4 {[%clk 0:00:12.2]} 52. Bxg4 {[%clk 0:00:17.7]} 52... Ke5 {[%clk
0:00:08.3]} 53. Bd1 {[%clk 0:00:17.9]} 53... Na6 {[%clk 0:00:06.4]} 54. Bc2
{[%clk 0:00:14.6]} 54... Kd6 {[%clk 0:00:04]} 55. Nf5+ {[%clk 0:00:14.7]} 55...
Ke5 {[%clk 0:00:04.9]} 56. Nd4 {[%clk 0:00:15.1]} 56... Nb8 {[%clk 0:00:05.4]}
57. Bd3 {[%clk 0:00:15.1]} 57... Kd6 {[%clk 0:00:05.4]} 58. Bb5 {[%clk
0:00:15.3]} 58... Kc5 {[%clk 0:00:06]} 59. Kd3 {[%clk 0:00:16.1]} 59... Kd6
{[%clk 0:00:05.1]} 60. Nc2 {[%clk 0:00:14.5]} 60... Kc5 {[%clk 0:00:03.6]} 61.
Nd4 {[%clk 0:00:15.4]} 61... Kd6 {[%clk 0:00:04.5]} 62. Be8 {[%clk 0:00:16.2]}
62... Na6 {[%clk 0:00:04.7]} 63. Nf5+ {[%clk 0:00:16.9]} 63... Ke5 {[%clk
0:00:04.2]} 64. Nd4 {[%clk 0:00:16.1]} 64... Nc5+ {[%clk 0:00:05.3]} 65. Ke3
{[%clk 0:00:15.9]} 65... Kd6 {[%clk 0:00:05.7]} 66. Bg6 {[%clk 0:00:16]} 66...
Ke5 {[%clk 0:00:06.8]} 67. Bc2 {[%clk 0:00:16.7]} 67... Kd6 {[%clk 0:00:06.8]}
68. Ne2 {[%clk 0:00:17.6]} 68... Ke5 {[%clk 0:00:07.1]} 69. Nd4 {[%clk
0:00:18.5]} 69... Kd6 {[%clk 0:00:06.7]} 70. Nf3 {[%clk 0:00:17.8]} 70... Ne6
{[%clk 0:00:06.6]} 71. Kd3 {[%clk 0:00:17.5]} 71... Nf4+ {[%clk 0:00:05.3]} 72.
Kd2 {[%clk 0:00:17.4]} 72... Kc5 {[%clk 0:00:03.9]} 73. Ne5 {[%clk 0:00:17.1]}
73... Kd4 {[%clk 0:00:03.7]} 74. Nd3 {[%clk 0:00:17.9]} 74... Nxd3 {[%clk
0:00:04.5]} 75. Bxd3 {[%clk 0:00:18.7]} 75... Kc5 {[%clk 0:00:06.4]} 76. Ke3
{[%clk 0:00:19.7]} 76... d4+ {[%clk 0:00:07.7]} 77. Ke4 {[%clk 0:00:20.5]} 77...
Kb6 {[%clk 0:00:09.1]} 78. Kxd4 {[%clk 0:00:21.5]} 78... Kb7 {[%clk 0:00:10.2]}
79. Kc5 {[%clk 0:00:22.4]} 79... Kb8 {[%clk 0:00:11.6]} 80. Kxb4 {[%clk
0:00:23.4]} 80... Kc7 {[%clk 0:00:12.9]} 81. Kc5 {[%clk 0:00:24.2]} 81... Kb8
{[%clk 0:00:13.6]} 82. b4 {[%clk 0:00:25.5]} 82... Kc7 {[%clk 0:00:15]} 83. b5
{[%clk 0:00:26.2]} 83... Kb8 {[%clk 0:00:16.9]} 84. Kb6 {[%clk 0:00:26.9]} 84...
Ka8 {[%clk 0:00:18.5]} 85. Kc7 {[%clk 0:00:27.5]} 1-0

[Event "*** Titled Tuesday Blitz"]
[Site "Chess.com"]
[Date "2019.02.05"]
[Round "3"]
[White "LucaBrasi1968"]
[Black "Al_Shima"]
[Result "1/2-1/2"]
[WhiteElo "2479"]
[BlackElo "2508"]
[TimeControl "180+2"]
[EndTime "13:29:47 PST"]
[Termination "Game drawn by agreement"]

1. d4 {[%clk 0:03:01.9]} 1... Nf6 {[%clk 0:03:00.3]} 2. Nf3 {[%clk 0:02:51.4]}
2... e6 {[%clk 0:02:59.2]} 3. Bg5 {[%clk 0:02:49.9]} 3... h6 {[%clk 0:02:59.1]}
4. Bh4 {[%clk 0:02:49.9]} 4... Be7 {[%clk 0:02:57.8]} 5. c3 {[%clk 0:02:50.4]}
5... c5 {[%clk 0:02:54.9]} 6. e3 {[%clk 0:02:50.9]} 6... Qb6 {[%clk 0:02:53.2]}
7. Qb3 {[%clk 0:02:49.9]} 7... Qxb3 {[%clk 0:02:49.4]} 8. axb3 {[%clk
0:02:50.1]} 8... Nc6 {[%clk 0:02:44.4]} 9. Nbd2 {[%clk 0:02:50.4]} 9... d6
{[%clk 0:02:34.4]} 10. Bd3 {[%clk 0:02:50]} 10... Bd7 {[%clk 0:02:29.2]} 11. h3
{[%clk 0:02:51.1]} 11... O-O {[%clk 0:02:29.2]} 12. Bg3 {[%clk 0:02:51.1]} 12...
Rfd8 {[%clk 0:02:27.7]} 13. O-O {[%clk 0:02:51.1]} 13... a6 {[%clk 0:02:24.8]}
14. Rfd1 {[%clk 0:02:51.3]} 14... d5 {[%clk 0:02:22.3]} 15. Ne5 {[%clk
0:02:46.7]} 15... Nxe5 {[%clk 0:02:21.9]} 16. Bxe5 {[%clk 0:02:46.7]} 1/2-1/2

[Event "*** Titled Tuesday Blitz"]
[Site "Chess.com"]
[Date "2019.02.05"]
[Round "3"]
[White "NMJeevanK"]
[Black "ENEASZ"]
[Result "0-1"]
[WhiteElo "2317"]
[BlackElo "2387"]
[TimeControl "180+2"]
[EndTime "13:30:49 PST"]
[Termination "ENEASZ won by resignation"]

1. e4 {[%clk 0:03:01.9]} 1... d6 {[%clk 0:03:01.9]} 2. d4 {[%clk 0:03:02.9]}
2... Nf6 {[%clk 0:03:03.2]} 3. Bd3 {[%clk 0:03:03.5]} 3... e5 {[%clk 0:03:04.5]}
4. c3 {[%clk 0:03:04.4]} 4... Nc6 {[%clk 0:03:05.5]} 5. Nf3 {[%clk 0:03:05.4]}
5... Bg4 {[%clk 0:03:06.8]} 6. Be3 {[%clk 0:03:05.9]} 6... d5 {[%clk 0:03:05.5]}
7. Nbd2 {[%clk 0:02:59.3]} 7... exd4 {[%clk 0:02:58.9]} 8. cxd4 {[%clk
0:02:56.5]} 8... dxe4 {[%clk 0:03:00.1]} 9. Nxe4 {[%clk 0:02:57.7]} 9... Nxe4
{[%clk 0:03:01.5]} 10. Bxe4 {[%clk 0:02:59.6]} 10... Bb4+ {[%clk 0:03:02.8]} 11.
Bd2 {[%clk 0:02:37]} 11... Bxd2+ {[%clk 0:02:21.3]} 12. Qxd2 {[%clk 0:02:36.5]}
12... Bxf3 {[%clk 0:02:22.3]} 13. Bxf3 {[%clk 0:02:30.2]} 13... Nxd4 {[%clk
0:02:23.5]} 14. Bxb7 {[%clk 0:02:28.8]} 14... Rb8 {[%clk 0:02:24.1]} 15. Be4
{[%clk 0:02:23.1]} 15... O-O {[%clk 0:02:12.5]} 16. O-O {[%clk 0:01:56.7]} 16...
Nf3+ {[%clk 0:02:12.7]} 0-1

[Event "*** Titled Tuesday Blitz"]
[Site "Chess.com"]
[Date "2019.02.05"]
[Round "3"]
[White "Storne89"]
[Black "EugeneRougon"]
[Result "1-0"]
[WhiteElo "2581"]
[BlackElo "2566"]
[TimeControl "180+2"]
[EndTime "13:31:05 PST"]
[Termination "Storne89 won by checkmate"]

1. e4 {[%clk 0:03:01.9]} 1... d6 {[%clk 0:02:59.6]} 2. d4 {[%clk 0:03:02.6]}
2... Nf6 {[%clk 0:02:59.9]} 3. Nc3 {[%clk 0:03:04.1]} 3... g6 {[%clk 0:03:01.1]}
4. Bg5 {[%clk 0:03:04.9]} 4... Bg7 {[%clk 0:02:56.2]} 5. Qd2 {[%clk 0:03:05.2]}
5... a6 {[%clk 0:02:43]} 6. f4 {[%clk 0:02:56.1]} 6... b5 {[%clk 0:02:28.4]} 7.
Bd3 {[%clk 0:02:53.4]} 7... Bb7 {[%clk 0:02:25]} 8. a3 {[%clk 0:02:50.6]} 8...
Nbd7 {[%clk 0:02:11.1]} 9. Nf3 {[%clk 0:02:50.3]} 9... c5 {[%clk 0:01:33.3]} 10.
d5 {[%clk 0:02:51.2]} 10... c4 {[%clk 0:01:29.9]} 11. Be2 {[%clk 0:02:52.4]}
11... Nc5 {[%clk 0:01:31.5]} 12. Qe3 {[%clk 0:02:53.4]} 12... Ng4 {[%clk
0:01:28.7]} 13. Qg1 {[%clk 0:02:51.5]} 13... h6 {[%clk 0:01:22.5]} 14. Bh4
{[%clk 0:02:52.4]} 14... Qa5 {[%clk 0:01:16.9]} 15. e5 {[%clk 0:02:44.1]} 15...
dxe5 {[%clk 0:01:12.5]} 16. Qxc5 {[%clk 0:02:44.1]} 16... exf4 {[%clk
0:01:08.2]} 17. Qxe7# {[%clk 0:02:44.5]} 1-0

[Event "*** Titled Tuesday Blitz"]
[Site "Chess.com"]
[Date "2019.02.05"]
[Round "3"]
[White "mjray79"]
[Black "wanyaland"]
[Result "0-1"]
[WhiteElo "2072"]
[BlackElo "2085"]
[TimeControl "180+2"]
[EndTime "13:31:16 PST"]
[Termination "wanyaland won by resignation"]

1. d4 {[%clk 0:03:01.9]} 1... d5 {[%clk 0:03:00.7]} 2. Nf3 {[%clk 0:03:01.8]}
2... c6 {[%clk 0:03:02]} 3. c4 {[%clk 0:03:00.7]} 3... Nf6 {[%clk 0:03:01.8]} 4.
Nc3 {[%clk 0:02:59.3]} 4... e6 {[%clk 0:03:02.5]} 5. Bg5 {[%clk 0:02:58.6]} 5...
dxc4 {[%clk 0:03:02.9]} 6. e4 {[%clk 0:02:58.2]} 6... b5 {[%clk 0:03:02.7]} 7.
e5 {[%clk 0:02:56.6]} 7... h6 {[%clk 0:03:03.8]} 8. Bh4 {[%clk 0:02:57]} 8... g5
{[%clk 0:03:04.7]} 9. Bg3 {[%clk 0:02:57.9]} 9... Nd5 {[%clk 0:03:04.1]} 10. Nd2
{[%clk 0:02:56.5]} 10... Be7 {[%clk 0:02:57.8]} 11. Nde4 {[%clk 0:02:56.5]}
11... a6 {[%clk 0:02:58.1]} 12. Be2 {[%clk 0:02:57]} 12... Nd7 {[%clk 0:02:57]}
13. Bh5 {[%clk 0:02:56.3]} 13... c5 {[%clk 0:02:54.8]} 14. Qf3 {[%clk
0:02:55.8]} 14... O-O {[%clk 0:02:50.9]} 15. Rd1 {[%clk 0:02:46.6]} 15... Bb7
{[%clk 0:02:45.9]} 16. O-O {[%clk 0:02:45]} 16... cxd4 {[%clk 0:02:36]} 17. Rxd4
{[%clk 0:02:44.4]} 17... Qb6 {[%clk 0:02:36.1]} 18. Rfd1 {[%clk 0:02:43.4]}
18... Nc5 {[%clk 0:02:35.6]} 19. Nf6+ {[%clk 0:02:35.8]} 19... Nxf6 {[%clk
0:02:31.6]} 20. exf6 {[%clk 0:02:35.1]} 20... Bxf3 {[%clk 0:02:31.1]} 21. fxe7
{[%clk 0:02:34.5]} 21... Bxh5 {[%clk 0:02:32]} 22. exf8=Q+ {[%clk 0:02:33.9]}
22... Rxf8 {[%clk 0:02:32]} 23. Rd6 {[%clk 0:02:24.4]} 23... Qa5 {[%clk
0:02:27.4]} 24. R1d2 {[%clk 0:02:18.2]} 24... b4 {[%clk 0:02:26.3]} 25. Nb1
{[%clk 0:02:17.3]} 25... Qxa2 {[%clk 0:02:26.5]} 26. h3 {[%clk 0:02:12.3]} 26...
Qxb1+ {[%clk 0:02:26.2]} 27. Kh2 {[%clk 0:02:13.7]} 27... Ne4 {[%clk 0:02:27.3]}
0-1

[Event "*** Titled Tuesday Blitz"]
[Site "Chess.com"]
[Date "2019.02.05"]
[Round "3"]
[White "Maikrosoft63"]
[Black "GMBenjaminBok"]
[Result "0-1"]
[WhiteElo "2566"]
[BlackElo "2855"]
[TimeControl "180+2"]
[EndTime "13:31:32 PST"]
[Termination "GMBenjaminBok won by resignation"]

1. e4 {[%clk 0:03:01.9]} 1... c5 {[%clk 0:03:00.6]} 2. Nf3 {[%clk 0:03:01.6]}
2... d6 {[%clk 0:03:02]} 3. d4 {[%clk 0:03:02.6]} 3... cxd4 {[%clk 0:03:03.9]}
4. Nxd4 {[%clk 0:03:04.1]} 4... Nf6 {[%clk 0:03:05.4]} 5. Nc3 {[%clk 0:03:05.1]}
5... a6 {[%clk 0:03:06.9]} 6. Be3 {[%clk 0:03:05.9]} 6... e5 {[%clk 0:03:07.3]}
7. Nb3 {[%clk 0:03:07.2]} 7... Be6 {[%clk 0:03:08.4]} 8. Qd2 {[%clk 0:03:08.5]}
8... Be7 {[%clk 0:03:08.2]} 9. O-O-O {[%clk 0:03:09.2]} 9... Nbd7 {[%clk
0:03:08.2]} 10. f4 {[%clk 0:03:10.3]} 10... b5 {[%clk 0:03:08.3]} 11. f5 {[%clk
0:03:11.1]} 11... Bc4 {[%clk 0:03:09.2]} 12. Kb1 {[%clk 0:03:09.5]} 12... Qc7
{[%clk 0:02:52.1]} 13. g4 {[%clk 0:02:57.2]} 13... b4 {[%clk 0:02:49.4]} 14. Nd5
{[%clk 0:02:57.8]} 14... Nxd5 {[%clk 0:02:49.6]} 15. exd5 {[%clk 0:02:55.9]}
15... a5 {[%clk 0:02:48.4]} 16. g5 {[%clk 0:02:30.4]} 16... a4 {[%clk
0:02:44.6]} 17. Nc1 {[%clk 0:02:31.1]} 17... b3 {[%clk 0:02:08.5]} 18. cxb3
{[%clk 0:02:26.4]} 18... axb3 {[%clk 0:02:09.3]} 19. a3 {[%clk 0:02:11]} 19...
Bxd5 {[%clk 0:01:51.1]} 20. Bg2 {[%clk 0:01:56.8]} 20... Qc2+ {[%clk 0:01:50]}
21. Ka1 {[%clk 0:01:54.9]} 21... Rxa3+ {[%clk 0:01:49]} 0-1

[Event "*** Titled Tuesday Blitz"]
[Site "Chess.com"]
[Date "2019.02.05"]
[Round "3"]
[White "Rakesh"]
[Black "JulianProleiko"]
[Result "1-0"]
[WhiteElo "2311"]
[BlackElo "2433"]
[TimeControl "180+2"]
[EndTime "13:32:05 PST"]
[Termination "Rakesh won by resignation"]

1. e4 {[%clk 0:02:59]} 1... c6 {[%clk 0:03:00.6]} 2. c4 {[%clk 0:02:58.5]} 2...
d5 {[%clk 0:03:01.8]} 3. cxd5 {[%clk 0:03:00.4]} 3... cxd5 {[%clk 0:03:03.7]} 4.
exd5 {[%clk 0:03:00.2]} 4... Nf6 {[%clk 0:03:05.1]} 5. Qa4+ {[%clk 0:02:59]}
5... Nbd7 {[%clk 0:03:04.1]} 6. Nc3 {[%clk 0:03:00.2]} 6... a6 {[%clk
0:02:54.9]} 7. Nf3 {[%clk 0:03:00.4]} 7... Rb8 {[%clk 0:02:55.1]} 8. d4 {[%clk
0:02:21.6]} 8... b5 {[%clk 0:02:54.7]} 9. Qc2 {[%clk 0:02:22]} 9... Bb7 {[%clk
0:02:51.7]} 10. Bf4 {[%clk 0:02:21.7]} 10... Rc8 {[%clk 0:02:50.7]} 11. Qb3
{[%clk 0:02:22.8]} 11... Nb6 {[%clk 0:02:50.4]} 12. Nxb5 {[%clk 0:02:11.6]}
12... axb5 {[%clk 0:02:51.3]} 13. Bxb5+ {[%clk 0:02:12.9]} 13... Nfd7 {[%clk
0:02:47.1]} 14. d6 {[%clk 0:02:12.2]} 14... Bxf3 {[%clk 0:02:43.3]} 15. Qxf3
{[%clk 0:02:10.1]} 15... exd6 {[%clk 0:02:41]} 16. O-O {[%clk 0:02:00.7]} 16...
Be7 {[%clk 0:02:40.2]} 17. a4 {[%clk 0:02:01.5]} 17... O-O {[%clk 0:02:40.7]}
18. a5 {[%clk 0:02:02.8]} 18... Na8 {[%clk 0:02:41.6]} 19. b4 {[%clk 0:02:03.7]}
19... Nf6 {[%clk 0:02:39.9]} 20. Bd3 {[%clk 0:01:58.9]} 20... d5 {[%clk
0:02:38.7]} 21. b5 {[%clk 0:01:59.5]} 21... Nc7 {[%clk 0:02:39.7]} 22. b6 {[%clk
0:01:59.7]} 22... Ne6 {[%clk 0:02:40.2]} 23. b7 {[%clk 0:01:57.8]} 23... Rb8
{[%clk 0:02:38.4]} 24. Bxb8 {[%clk 0:01:56.8]} 24... Qxb8 {[%clk 0:02:40.3]} 25.
a6 {[%clk 0:01:58.4]} 25... Qa7 {[%clk 0:02:41.4]} 26. Rfb1 {[%clk 0:01:58.3]}
26... Rb8 {[%clk 0:02:41.2]} 27. Qg3 {[%clk 0:01:53.3]} 27... Nxd4 {[%clk
0:02:02.3]} 28. Qxb8+ {[%clk 0:01:49.6]} 28... Qxb8 {[%clk 0:02:04.2]} 29. a7
{[%clk 0:01:50.4]} 29... Qf4 {[%clk 0:02:03.4]} 30. b8=Q+ {[%clk 0:01:48.5]} 1-0

[Event "*** Titled Tuesday Blitz"]
[Site "Chess.com"]
[Date "2019.02.05"]
[Round "3"]
[White "Godzillator"]
[Black "Frolik67"]
[Result "0-1"]
[WhiteElo "2394"]
[BlackElo "2538"]
[TimeControl "180+2"]
[EndTime "13:32:07 PST"]
[Termination "Frolik67 won by resignation"]

1. d4 {[%clk 0:03:01.9]} 1... e6 {[%clk 0:03:00.5]} 2. c4 {[%clk 0:03:03.2]}
2... d5 {[%clk 0:03:01.4]} 3. cxd5 {[%clk 0:03:03.8]} 3... exd5 {[%clk 0:03:02]}
4. Nc3 {[%clk 0:03:05.1]} 4... Nf6 {[%clk 0:03:03.2]} 5. Bg5 {[%clk 0:03:06.1]}
5... Be7 {[%clk 0:03:04.2]} 6. e3 {[%clk 0:03:07.2]} 6... O-O {[%clk 0:03:05.2]}
7. Bd3 {[%clk 0:03:08.4]} 7... c6 {[%clk 0:03:06.2]} 8. Qc2 {[%clk 0:03:09.6]}
8... h6 {[%clk 0:03:06.7]} 9. Bh4 {[%clk 0:03:10.4]} 9... Re8 {[%clk 0:03:07.9]}
10. Nf3 {[%clk 0:03:11.7]} 10... Nbd7 {[%clk 0:03:08.2]} 11. O-O {[%clk
0:03:12.8]} 11... Ne4 {[%clk 0:03:00.2]} 12. Bxe4 {[%clk 0:03:13.2]} 12... Bxh4
{[%clk 0:02:52.9]} 13. Bh7+ {[%clk 0:03:13.6]} 13... Kh8 {[%clk 0:02:53.6]} 14.
Bd3 {[%clk 0:03:14.7]} 14... Bf6 {[%clk 0:02:53.7]} 15. b4 {[%clk 0:03:15.5]}
15... Nf8 {[%clk 0:02:52.2]} 16. b5 {[%clk 0:03:12.6]} 16... Bg4 {[%clk
0:02:48.7]} 17. Nd2 {[%clk 0:03:12.9]} 17... Qd6 {[%clk 0:02:44.1]} 18. bxc6
{[%clk 0:03:12.2]} 18... bxc6 {[%clk 0:02:44.2]} 19. Bf5 {[%clk 0:03:11.4]}
19... Bh5 {[%clk 0:02:40.1]} 20. Na4 {[%clk 0:03:07.4]} 20... Ne6 {[%clk
0:02:35.8]} 21. Rfc1 {[%clk 0:03:00.7]} 21... Bxd4 {[%clk 0:02:27.2]} 22. exd4
{[%clk 0:02:58]} 22... Nxd4 {[%clk 0:02:27.9]} 23. Qd3 {[%clk 0:02:52.6]} 23...
Ne2+ {[%clk 0:02:21]} 24. Kh1 {[%clk 0:02:52.2]} 24... Nxc1 {[%clk 0:02:22.3]}
25. Rxc1 {[%clk 0:02:52.9]} 25... Be2 {[%clk 0:02:16.4]} 26. Qc3 {[%clk
0:02:44.7]} 26... Bb5 {[%clk 0:02:16.2]} 27. Nc5 {[%clk 0:02:41.4]} 27... Qf4
{[%clk 0:02:13.7]} 28. Bd3 {[%clk 0:02:25.6]} 28... Qxf2 {[%clk 0:02:07.9]} 29.
Bxb5 {[%clk 0:02:25]} 29... cxb5 {[%clk 0:02:08.8]} 30. Nf3 {[%clk 0:02:25.6]}
30... Rac8 {[%clk 0:02:03.6]} 31. Nd4 {[%clk 0:01:54]} 31... Rxc5 {[%clk
0:01:58.7]} 0-1

[Event "*** Titled Tuesday Blitz"]
[Site "Chess.com"]
[Date "2019.02.05"]
[Round "3"]
[White "Witik"]
[Black "Manukyan_Artak"]
[Result "1-0"]
[WhiteElo "2615"]
[BlackElo "2353"]
[TimeControl "180+2"]
[EndTime "13:32:12 PST"]
[Termination "Witik won by resignation"]

1. d4 {[%clk 0:03:01.9]} 1... c6 {[%clk 0:03:00.6]} 2. c4 {[%clk 0:03:02.1]}
2... d5 {[%clk 0:03:01.8]} 3. Nc3 {[%clk 0:03:03.4]} 3... Nf6 {[%clk 0:03:02.4]}
4. e3 {[%clk 0:03:04.5]} 4... e6 {[%clk 0:03:00.4]} 5. Nf3 {[%clk 0:03:04.9]}
5... Nbd7 {[%clk 0:03:01.3]} 6. Bd3 {[%clk 0:03:05.4]} 6... Bd6 {[%clk 0:03:02]}
7. O-O {[%clk 0:03:05.8]} 7... O-O {[%clk 0:03:00.7]} 8. e4 {[%clk 0:03:07.3]}
8... dxe4 {[%clk 0:03:00.3]} 9. Nxe4 {[%clk 0:03:09.2]} 9... Nxe4 {[%clk
0:03:01.5]} 10. Bxe4 {[%clk 0:03:11.1]} 10... Nf6 {[%clk 0:03:02.7]} 11. Bc2
{[%clk 0:03:12.7]} 11... c5 {[%clk 0:02:58.1]} 12. Qd3 {[%clk 0:03:13.3]} 12...
cxd4 {[%clk 0:02:53.7]} 13. Bg5 {[%clk 0:03:13.9]} 13... g6 {[%clk 0:02:48.3]}
14. Qxd4 {[%clk 0:03:13.9]} 14... Be7 {[%clk 0:02:48.6]} 15. Qh4 {[%clk
0:03:13.4]} 15... h6 {[%clk 0:02:15.3]} 16. Qxh6 {[%clk 0:03:10.2]} 16... Ng4
{[%clk 0:02:14.7]} 17. Qh4 {[%clk 0:03:08.5]} 17... Bxg5 {[%clk 0:02:11.2]} 18.
Nxg5 {[%clk 0:03:08.8]} 18... Nf6 {[%clk 0:02:05.5]} 19. Qh6 {[%clk 0:02:37.3]}
19... Qe7 {[%clk 0:01:50.1]} 20. Rfe1 {[%clk 0:02:38]} 20... Rd8 {[%clk
0:01:47.9]} 21. Re3 {[%clk 0:02:37.5]} 21... Qf8 {[%clk 0:01:48.9]} 22. Qh4
{[%clk 0:02:34]} 22... Qg7 {[%clk 0:01:44]} 23. Rg3 {[%clk 0:02:17.6]} 23... Nh5
{[%clk 0:01:36.9]} 24. Nxf7 {[%clk 0:02:11.2]} 24... Nxg3 {[%clk 0:01:34.5]} 25.
Qxd8+ {[%clk 0:02:04.4]} 25... Kxf7 {[%clk 0:01:35.2]} 26. fxg3 {[%clk
0:02:02.7]} 26... Qxb2 {[%clk 0:01:35.7]} 27. Rf1+ {[%clk 0:02:02.6]} 27... Kg7
{[%clk 0:01:36.5]} 28. Qf8+ {[%clk 0:02:03.2]} 28... Kh7 {[%clk 0:01:37.5]} 29.
Rf7+ {[%clk 0:02:03.7]} 1-0

[Event "*** Titled Tuesday Blitz"]
[Site "Chess.com"]
[Date "2019.02.05"]
[Round "3"]
[White "regular_legs"]
[Black "JosefineHeinemann"]
[Result "1-0"]
[WhiteElo "2490"]
[BlackElo "2413"]
[TimeControl "180+2"]
[EndTime "13:32:18 PST"]
[Termination "regular_legs won by checkmate"]

1. d4 {[%clk 0:03:01.9]} 1... Nf6 {[%clk 0:03:00.3]} 2. c4 {[%clk 0:03:01.4]}
2... g6 {[%clk 0:03:01.2]} 3. Nc3 {[%clk 0:03:02.9]} 3... d5 {[%clk 0:03:02.1]}
4. Nf3 {[%clk 0:03:04.4]} 4... Bg7 {[%clk 0:03:02.7]} 5. h4 {[%clk 0:03:06]}
5... c6 {[%clk 0:03:03]} 6. Bg5 {[%clk 0:03:05.2]} 6... dxc4 {[%clk 0:02:58.8]}
7. e4 {[%clk 0:03:05.2]} 7... b5 {[%clk 0:03:00]} 8. e5 {[%clk 0:03:04.1]} 8...
Nd5 {[%clk 0:03:00.6]} 9. h5 {[%clk 0:03:05.6]} 9... Bg4 {[%clk 0:02:55.2]} 10.
h6 {[%clk 0:03:04.9]} 10... Bf8 {[%clk 0:02:55.5]} 11. Be2 {[%clk 0:02:52.7]}
11... f6 {[%clk 0:02:55.7]} 12. Bd2 {[%clk 0:02:47.2]} 12... Kf7 {[%clk
0:02:54.5]} 13. Ng5+ {[%clk 0:02:44.1]} 13... fxg5 {[%clk 0:02:55.3]} 14. Bxg4
{[%clk 0:02:45.1]} 14... Nf4 {[%clk 0:02:34.3]} 15. Qf3 {[%clk 0:02:09.8]} 15...
Qxd4 {[%clk 0:02:30.5]} 16. O-O-O {[%clk 0:01:27.3]} 16... Qxe5 {[%clk
0:02:31.1]} 17. g3 {[%clk 0:01:26.7]} 17... Qf6 {[%clk 0:02:27.6]} 18. gxf4
{[%clk 0:01:24.7]} 18... gxf4 {[%clk 0:02:28.6]} 19. Ne4 {[%clk 0:01:24.9]}
19... e5 {[%clk 0:01:43.1]} 20. Nxf6 {[%clk 0:01:24.6]} 20... Kxf6 {[%clk
0:01:45]} 21. Bxf4 {[%clk 0:01:23.8]} 21... exf4 {[%clk 0:01:43.7]} 22. Qxf4+
{[%clk 0:01:24.9]} 22... Ke7 {[%clk 0:01:45]} 23. Rhe1# {[%clk 0:01:20.4]} 1-0